[Event "Marmaris Icmeler-IM May 2022"]
[Site "Icmeler"]
[Date "2022.05.08"]
[Round "8.5"]
[White "Darban, Morteza"]
[Black "Nazari, Arad"]
[Result "0-1"]
[ECO "A36"]
[WhiteElo "2279"]
[BlackElo "2287"]
[Annotator "TA"]
[PlyCount "67"]
[EventDate "2022.05.05"]
[EventType "schev"]
[EventCountry "TUR"]
[SourceTitle "playchess.com"]
[Source "ChessBase"]
[SourceQuality "1"]
[TimeControl "5400+30"]

{[%evp 11,67,-19,-17,-14,-4,-10,0,-37,-10,-17,0,-6,0,0,-6,-11,0,-11,0,0,0,-43,-44,-50,-54,-37,0,0,0,0,0,0,0,0,43,26,75,44,84,0,0,-132,-143,-218,-205,-232,-231,-558,-537,-725,-721,-1935,-1925,-1731,-1645,-1569,-1445,-6399]} 1. c4 {[%emt 0:01:00]} c5 {[%emt 0:08:00]} 2. Nc3 {[%emt 0:02:30]} Nc6 {[%emt 0:00:30]} 3. g3 {[%emt 0:00:30]} g6 {[%emt 0:00:00]} 4. Bg2 {[%emt 0:00:30]} Bg7 {[%emt 0:00:00]} 5. e4 {[%emt 0:03:00]} a6 {[%emt 0:02:30]} 6. Nge2 {[%emt 0:03:30]} b5 {[%emt 0:00:30][%cal Bb7b5,Bb5b4][%mdl 32]} 7. d3 {[%emt 0:02:30] A36: Symmetrical English vs ...g6: 4 Bg2 Bg7.} Rb8 {[%emt 0:00:00]} 8. O-O {[%emt 0:02:30]} d6 {[%emt 0:00:30]} 9. f4 {[%emt 0:02:30][%cal Oe4e5] The position is equal. is the legacy move (9.Rb1).} b4 {[%emt 0:08:30]} 10. Nd5 {[%emt 0:03:30] [#]} Bg4 $146 {[%emt 0:01:30]} ({Predecessor:} 10... e6 11. Ne3 Nge7 12. Rb1 O-O 13. b3 f5 14. Bb2 Nd4 15. h3 Bb7 16. Kh2 Qb6 {½-½ (43) Schuette,M (2346)-Zysk,R (2468) Bad Wiessee 2006}) 11. Ne3 {[%emt 0:05:30]} Bxe2 {[%emt 0:02:30]} 12. Qxe2 {[%emt 0:00:30]} Nd4 {[%emt 0:00:30]} 13. Qf2 {[%emt 0:00:00]} Nf6 {[%emt 0:02:30][%cal Bg8f6,Bf6d7,Bd7b6][%mdl 32]} 14. b3 {[%emt 0:09:30]} O-O {[%emt 0:01:30]} 15. Bb2 {[%emt 0:00:30]} Nd7 {[%emt 0:01:30]} 16. g4 {[%emt 0:04:30]} a5 {[%emt 0:10:30][%cal Oa5a4]} 17. Rab1 {[%emt 0:07:30]} a4 {[%emt 0:05:30]} 18. bxa4 {[%emt 0:10:30]} Nb6 {[%emt 0:05:30] Pair of Knights!} (18... Ra8 $5 {[%cal Ra8a4]}) 19. Nc2 $1 {[%emt 0:02:30]} Nxc2 {[%emt 0:07:30]} 20. Bxg7 {[%emt 0:01:30]} Kxg7 {[%emt 0:00:30]} 21. Qxc2 {[%emt 0:00:30][%cal Oa2a3]} e5 {[%emt 0:00:30]} 22. f5 {[%emt 0:02:00]} f6 {[%emt 0:05:00]} 23. h4 {[%emt 0:01:30][%cal Oa2a3]} Qd7 {[%emt 0:04:30]} (23... Rg8 $11) 24. a5 $16 {[%emt 0:02:30]} Na4 {[%emt 0:00:30]} 25. Rf2 {[%emt 0:06:30]} ({White should try} 25. a3 $16) 25... Nc3 $11 {[%emt 0:08:30]} 26. Rbf1 {[%emt 0:08:30]} (26. Rb3 $11) 26... Ra8 $17 {[%emt 0:12:30][%cal Bb8a8,Ba8a5,Ba5a2,Ba2e2][%mdl 32]} 27. g5 {[%emt 0:04:30]} (27. a3 $17 Rxa5 28. axb4 cxb4 29. Qc1) 27... Rxa5 $19 {[%emt 0:03:19]} 28. gxf6+ {[%emt 0:03:30]} ({Much weaker is} 28. fxg6 Rxa2 29. gxf6+ Kxg6 30. h5+ (30. Qc1 $2 Qg4 $19) 30... Kf7 $17) 28... Rxf6 {[%emt 0:02:08]} 29. fxg6 $2 {[%emt 0:00:30] [#]} (29. Qc1 {is tougher.} Rxa2 30. Rxa2 Nxa2 31. Qg5) 29... Rf4 {[%emt 0:02:22] Black is clearly winning.} ({Not} 29... Rxg6 $2 30. h5 Rg5 31. Qc1 $19) 30. h5 {[%emt 0:08:06]} Rxa2 {[%emt 0:01:51]} 31. Qc1 {[%emt 0:02:20]} Rfxf2 {[%emt 0:00:47]} 32. Rxf2 {[%emt 0:00:16]} Ne2+ {[%emt 0:00:40]} 33. Rxe2 {[%emt 0:00:09]} Rxe2 {[%emt 0:00:03]} 34. Qg5 {[%emt 0:06:21] Prevents Qg4.  Weighted Error Value: White=0.55/Black=0.09 (flawless)} 0-1

[Event "Marmaris Icmeler-IM May 2022"]
[Site "Icmeler"]
[Date "2022.05.09"]
[Round "9.1"]
[White "Hereklioglu, Sude"]
[Black "Sevdimaliyev, Urfan"]
[Result "0-1"]
[ECO "D76"]
[WhiteElo "1918"]
[BlackElo "2331"]
[Annotator "TA"]
[PlyCount "88"]
[EventDate "2022.05.05"]
[EventType "schev"]
[EventCountry "TUR"]
[SourceTitle "playchess.com"]
[Source "ChessBase"]
[SourceQuality "1"]
[TimeControl "5400+30"]

{[%evp 18,88,28,25,16,5,8,8,9,11,27,18,20,-14,-6,-17,-12,-14,-6,-28,-25,-35,-23,-12,-28,-31,-24,-139,-42,-56,-43,-37,-6,-132,-74,-77,-59,-80,-97,-121,-113,-111,-110,-122,-21,-15,691,-123,-119,-132,-87,-146,-92,-102,-81,-127,-89,-87,-43,-43,-40,-108,-90,-288,-209,-303,-293,-274,-275,-6295,-6295,-1813,-1365]} 1. Nf3 {[%emt 0:28:00]} Nf6 {[%emt 0:01:00]} 2. g3 {[%emt 0:01:30]} g6 {[%emt 0:00:30]} 3. Bg2 {[%emt 0:00:30]} Bg7 {[%emt 0:00:30]} 4. O-O {[%emt 0:00:30]} O-O {[%emt 0:00:00]} 5. c4 {[%emt 0:00:30]} d5 {[%emt 0:01:00]} 6. cxd5 {[%emt 0:00:00]} Nxd5 {[%emt 0:00:00]} 7. Nc3 {[%emt 0:00:00]} Nc6 {[%emt 0:00:00]} 8. d4 {[%emt 0:02:30]} Nb6 {[%emt 0:00:30]} 9. e3 {[%emt 0:01:30]} a5 {[%emt 0:02:30]} 10. b3 {[%emt 0:02:30]} e5 {[%emt 0:10:30][%cal Re5d4] D76: Fianchetto Grünfeld: Main Line with 7...Nb6.} 11. dxe5 {[%emt 0:05:30]} Nxe5 {[%emt 0:01:30]} 12. Nxe5 {[%emt 0:00:30]} Bxe5 {[%emt 0:00:30] The position is equal.} 13. Bb2 {[%emt 0:00:30]} Qe7 {[%emt 0:02:30]} 14. Qc2 {[%emt 0:01:30]} c6 {[%emt 0:02:30]} 15. f4 {[%emt 0:01:30]} Bg7 {[%emt 0:01:30]} (15... Bf5 16. e4 Qc5+ 17. Rf2 Bxc3 18. Bxc3 $16 (18. Qxc3 Qxc3 19. Bxc3 Be6 $16)) 16. e4 {[%emt 0:04:30] [#]} Qc5+ $146 {[%emt 0:08:30]} ({Predecessor:} 16... Rd8 17. Kh1 a4 18. Rac1 axb3 19. Qxb3 Ra6 20. f5 Nd7 21. a4 Rb6 22. Qa2 gxf5 23. exf5 {½-½ (69) Dimitrijevic,A (2139)-Uzumcu,A (2211) Marmaris 2019}) 17. Kh1 {[%emt 0:00:30][%cal Oc2d1]} a4 {[%emt 0:01:30]} 18. Rac1 {[%emt 0:01:30]} axb3 {[%emt 0:00:30]} 19. axb3 {[%emt 0:00:00]} Qb4 {[%emt 0:06:30]} 20. f5 {[%emt 0:01:00] Against Be6} Nd7 {[%emt 0:02:30]} 21. Ne2 {[%emt 0:05:30]} Ra2 {[%emt 0:06:30]} 22. Rb1 {[%emt 0:04:30] [#]} (22. Nc3 $11 Ra5 23. Na4) 22... Rxb2 {[%emt 0:04:30]} (22... Re8 $1 $17 23. Qc1 Bxb2 24. Rxb2 Rxb2 25. Qxb2 Nc5) 23. Rxb2 $15 {[%emt 0:00:00]} Bxb2 {[%emt 0:00:30]} 24. Qxb2 {[%emt 0:00:00]} Nc5 {[%emt 0:00:30]} 25. f6 {[%emt 0:07:30]} (25. Nf4 $11 {keeps the balance.}) 25... Nxb3 {[%emt 0:10:30]} (25... Qxb3 26. Qc1 Ne6 27. Qh6 $15) ({Black should play} 25... Re8 26. Nc3 Nxb3) 26. Nf4 $17 {[%emt 0:19:05] Hoping for Rb1.} Qc4 {[%emt 0:10:30]} 27. Rd1 {[%emt 0:05:15]} Nc5 {[%emt 0:07:51]} 28. Qe5 {[%emt 0:03:53]} Ne6 {[%emt 0:02:18]} 29. Nxe6 {[%emt 0:02:01]} Qxe6 {[%emt 0:00:27]} (29... Bxe6 $2 30. Qd6 Bd7 31. Qxd7 $18) 30. Qf4 {[%emt 0:01:13]} Qg4 {[%emt 0:02:46]} ({Better is} 30... h6 $17 {Strongly threatening ...g5.} 31. e5 Qg4) 31. Qd6 $1 $11 {[%emt 0:01:17][%cal Od6f8]} Qe6 $2 {[%emt 0:02:06][%mdl 8192] [#]} (31... Re8 $11) 32. Qf4 $2 {[%emt 0:00:27]} (32. Qe7 $1 $18 {White wants to mate with Rd8.} Re8 33. Rd8 Qxe7 34. fxe7) 32... h6 $17 {[%emt 0:01:24]} 33. e5 {[%emt 0:00:51]} Qg4 {[%emt 0:04:34]} 34. Qd2 {[%emt 0:00:06]} (34. Rb1 $142 Qxf4 35. gxf4) 34... Bf5 {[%emt 0:02:48]} (34... Kh7 $142 35. Rf1 Re8) 35. h3 {[%emt 0:00:51][%cal Od2h6]} Qg5 {[%emt 0:01:02]} 36. Qb4 {[%emt 0:00:42]} (36. Qxg5 $142 hxg5 37. g4) 36... Re8 {[%emt 0:00:37]} 37. Kh2 {[%emt 0:00:38]} Bc8 {[%emt 0:02:09]} (37... Rxe5 {leads to mate.} 38. Rd8+) 38. Qd6 {[%emt 0:00:06] And now Qc7 would win.} Qf5 {[%emt 0:00:31]} (38... Qxe5 $2 39. Qxe5 Rxe5 40. Rd8+ Kh7 41. Rxc8 $18) 39. Re1 {[%emt 0:00:47]} (39. Qc7 $15 Qe6 40. Rd8) 39... Be6 {[%emt 0:01:42]} ({Don't play} 39... Qf2 $6 40. Rd1 Kh7 41. Qc7 $15 (41. Rd2 Qe1 $17)) 40. Qc7 $2 {[%emt 0:00:40]} (40. Qd4 $17 {might work better.}) 40... Bd5 {[%emt 0:00:54] White must now prevent ...Bxg2.} 41. Qxb7 {[%emt 0:00:28]} (41. Re2 {was necessary.} Bxg2 42. Kxg2) 41... Qf2 {[%emt 0:01:24][%csl Gd5][%cal Rf2g2]} 42. Rg1 {[%emt 0:00:03]} Qe2 {[%emt 0:00:21]} 43. Qe7 $2 {[%emt 0:00:56]} (43. h4) 43... Rxe7 $19 {[%emt 0:00:26]} 44. fxe7 {[%emt 0:00:05]} Qxe5 {[%emt 0:00:03] Weighted Error Value: White=0.69/Black=0.44} 0-1

[Event "Marmaris Icmeler-IM May 2022"]
[Site "Icmeler"]
[Date "2022.05.09"]
[Round "9.2"]
[White "Ince, Taylan Ruzgar"]
[Black "Toufighi, Homayoon"]
[Result "0-1"]
[ECO "E63"]
[WhiteElo "2018"]
[BlackElo "2439"]
[Annotator "TA"]
[PlyCount "110"]
[EventDate "2022.05.05"]
[EventType "schev"]
[EventCountry "TUR"]
[SourceTitle "playchess.com"]
[Source "ChessBase"]
[SourceQuality "1"]
[TimeControl "5400+30"]

{[%evp 17,110,25,27,20,25,31,31,22,29,21,29,22,22,22,32,31,27,0,20,0,14,0,18,18,30,17,102,92,53,-24,31,-6,147,151,128,152,153,147,156,152,143,116,116,0,322,275,330,325,306,209,209,206,205,86,85,101,95,90,77,35,46,16,41,16,33,30,29,0,0,-32,-13,-11,-22,-44,-45,-178,-178,-172,-173,-175,-175,-178,-178,-178,-178,-347,-282,-331,-331,-379,-372,-29966,-365,-29968,-29969]} 1. d4 {[%emt 0:01:00]} Nf6 {[%emt 0:03:00]} 2. c4 {[%emt 0:00:00]} g6 {[%emt 0:00:00]} 3. Nf3 {[%emt 0:00:00]} Bg7 {[%emt 0:00:00]} 4. g3 {[%emt 0:00:00]} O-O {[%emt 0:00:30]} 5. Bg2 {[%emt 0:00:00]} d6 {[%emt 0:00:00]} 6. O-O {[%emt 0:00:30]} Nc6 {[%emt 0:00:00]} 7. Nc3 {[%emt 0:00:00]} a6 {[%emt 0:00:30]} 8. Re1 {[%emt 0:00:00] 8.b3 is a critical line.} Rb8 {[%emt 0:00:00]} 9. Rb1 {[%emt 0:00:30]} Bf5 {[%emt 0:01:00]} 10. e4 {[%emt 0:00:30] E63: King's Indian: Fianchetto: Panno Variation with 7...a6.} Bg4 {[%emt 0:02:30]} 11. Be3 {[%emt 0:14:30]} Nd7 {[%emt 0:01:30]} 12. h3 {[%emt 0:05:30] White is slightly better.} Bxf3 {[%emt 0:00:00]} 13. Bxf3 {[%emt 0:00:30]} e5 {[%emt 0:00:00][%cal Re5d4]} 14. d5 {[%emt 0:00:30]} Nd4 {[%emt 0:00:30]} 15. Bg2 {[%emt 0:02:30]} c5 {[%emt 0:02:30]} 16. dxc6 {[%emt 0:02:30]} bxc6 {[%emt 0:00:30]} 17. b4 {[%emt 0:00:30] [#]} Qe7 $146 {[%emt 0:02:30]} ({Predecessor:} 17... c5 18. a3 Rc8 19. Bf1 cxb4 20. axb4 Nb6 21. c5 dxc5 22. Bxa6 cxb4 23. Bxd4 exd4 {½-½ (45) Kardashevskiy,E (2428)-Zakhartsov,V (2514) Sochi 2019}) 18. Bf1 {[%emt 0:19:30]} Qe6 {[%emt 0:02:30]} 19. Kg2 {[%emt 0:15:30]} Kh8 {[%emt 0:06:30]} 20. b5 {[%emt 0:07:30]} axb5 {[%emt 0:03:30]} 21. cxb5 {[%emt 0:00:30]} c5 {[%emt 0:00:30]} (21... cxb5 $11 {remains equal.} 22. Nxb5 Qxa2) 22. Nd5 $16 {[%emt 0:10:24]} f5 {[%emt 0:01:30]} 23. Qd3 {[%emt 0:00:05]} ({Better is} 23. a4 $14) 23... Rfc8 {[%emt 0:01:30]} (23... f4 $11 24. Bxd4 cxd4) 24. Qc4 {[%emt 0:02:47]} fxe4 $2 {[%emt 0:00:30]} (24... f4 $11) 25. a4 {[%emt 0:00:15]} Ra8 {[%emt 0:09:30]} 26. b6 {[%emt 0:01:02][%mdl 1024] White has strong compensation.} Rcb8 {[%emt 0:00:30]} 27. Rb2 {[%emt 0:01:56]} Bf6 {[%emt 0:03:30]} 28. Reb1 {[%emt 0:02:02]} Bd8 {[%emt 0:00:30]} 29. Bd2 {[%emt 0:03:00]} e3 {[%emt 0:07:30]} 30. Bxe3 {[%emt 0:02:33]} ({White should play} 30. fxe3 $16 Rxa4 31. Qxa4 Qxd5+ 32. Kh2 Nf3+ 33. Kh1 Nxd2+ 34. Bg2) 30... Qe8 $2 {[%emt 0:10:30][%mdl 8192]} (30... Rxa4 $1 $11 31. Qxa4 Qxd5+ 32. Kh2 Nf3+ 33. Kh1 Nh4+ 34. Kh2 Nf3+ 35. Kh1 Ne1+ 36. Kh2 Nf3+) 31. Bd2 $18 {[%emt 0:04:11]} Nxb6 {[%emt 0:01:30]} 32. Nxb6 {[%emt 0:00:26]} Qc6+ {[%emt 0:00:00]} 33. Qd5 {[%emt 0:00:06] And now Qxc6 would win.} ({Don't play} 33. Nd5 Rxb2 34. Rxb2 Rxa4 $18) 33... Rxb6 {[%emt 0:00:00]} 34. Qxc6 {[%emt 0:00:38]} Rxc6 {[%emt 0:00:30] [#]} 35. Rb8 {[%emt 0:00:12]} (35. Bc4 $1 $18 {[%cal Rc4d5] is the precise move to win.}) 35... Rc8 $16 {[%emt 0:00:00]} 36. Rxc8 {[%emt 0:00:18]} Rxc8 {[%emt 0:00:00]} 37. Bc4 {[%emt 0:00:18]} Nc6 {[%emt 0:00:30] Against a5} (37... Ra8 $2 38. Bd5 Rc8 39. a5 $18) 38. Kf3 {[%emt 0:02:12]} (38. Rb5 $5 {[%cal Ra4a5]}) 38... Ba5 {[%emt 0:04:30]} 39. Be3 {[%emt 0:00:51]} Nb4 {[%emt 0:01:30] Hoping for ...d5.} 40. Ke4 {[%emt 0:00:16] Inhibits d5+.} (40. Rd1 $5 {[%cal Rd1d6]} Bc7 41. a5 $11) 40... Kg7 {[%emt 0:00:30]} 41. Rd1 {[%emt 0:01:27]} Bc7 {[%emt 0:00:30]} 42. h4 {[%emt 0:00:52][%cal Oa4a5]} (42. a5 $5) 42... Rd8 {[%emt 0:02:30][%cal Od6d5]} 43. f3 {[%emt 0:00:28]} Ra8 {[%emt 0:02:30]} 44. Bxc5 {[%emt 0:01:45] A strong pair of Bishops.} Rxa4 {[%emt 0:01:30]} 45. Bxd6 {[%emt 0:00:59]} Na6 {[%emt 0:00:30]} 46. Bxe5+ {[%emt 0:01:18]} (46. Bb4 $1 $15) 46... Bxe5 $19 {[%emt 0:00:00]} 47. Rd7+ {[%emt 0:00:05]} Kh6 {[%emt 0:01:00] Threatens to win with ...Nc5+.} 48. Kxe5 {[%emt 0:00:46] White threatens Bg8 and mate.} Rxc4 {[%emt 0:00:00][%mdl 4096] Endgame KRN-KR} 49. g4 {[%emt 0:00:26] g5+ would kill now.} Rc7 {[%emt 0:00:00]} 50. Rd6 {[%emt 0:00:33]} Nc5 {[%emt 0:01:30]} 51. f4 $2 {[%emt 0:00:17]} (51. Kf4 {keeps fighting.}) 51... Kg7 {[%emt 0:00:30]} 52. f5 {[%emt 0:00:18]} Re7+ {[%emt 0:00:30]} 53. Kd5 {[%emt 0:00:03] f6+ is the strong threat.} Ne4 {[%emt 0:00:30] Inhibits f6+.} 54. Re6 {[%emt 0:01:04] [#]} (54. Rb6 $19) 54... Nf6+ {[%emt 0:00:30]} 55. Kd6 $2 {[%emt 0:00:31]} (55. Kc5 $19 Rxe6 56. fxe6) 55... Rxe6+ {[%emt 0:00:30] Never resign too early!  Weighted Error Value: White=0.55/Black=0.31} 0-1

[Event "Marmaris Icmeler-IM May 2022"]
[Site "Icmeler"]
[Date "2022.05.09"]
[Round "9.3"]
[White "Taspinar, Yanki"]
[Black "Huseyinoglu, Alihan"]
[Result "0-1"]
[ECO "B62"]
[WhiteElo "2176"]
[BlackElo "2278"]
[Annotator "TA"]
[PlyCount "78"]
[EventDate "2022.05.05"]
[EventType "schev"]
[EventCountry "TUR"]
[SourceTitle "playchess.com"]
[Source "ChessBase"]
[SourceQuality "1"]
[TimeControl "5400+30"]

{[%evp 13,78,26,37,16,19,19,12,0,43,-1,-17,-38,-18,-64,-74,-61,37,0,0,-21,0,-57,0,-65,-63,-58,-5,0,0,0,25,0,0,-62,-68,-60,-62,-64,0,-11,0,-101,-66,-59,-61,-93,-85,-93,-93,-97,-75,-120,-108,-102,-102,-101,-121,-179,-164,-163,-180,-177,-173,-182,-138,-91,-78]} 1. e4 {[%emt 0:07:00]} c5 {[%emt 0:01:00]} 2. Nf3 {[%emt 0:00:00]} Nc6 {[%emt 0:00:30]} 3. d4 {[%emt 0:00:00]} cxd4 {[%emt 0:00:30]} 4. Nxd4 {[%emt 0:00:00]} Nf6 {[%emt 0:00:30]} 5. Nc3 {[%emt 0:00:00]} d6 {[%emt 0:00:00]} 6. Bg5 {[%emt 0:00:30]} e6 {[%emt 0:02:00]} 7. Bb5 {[%emt 0:00:00]} Bd7 {[%emt 0:05:30]} 8. Qd3 {[%emt 0:00:00] outshines the older 8.Bxc6. B62: Sicilian: Richter-Rauzer: 6...e6: Unusual White 7th moves.} Be7 {[%emt 0:08:30]} 9. O-O-O {[%emt 0:00:30]} O-O {[%emt 0:04:30]} 10. Bxc6 {[%emt 0:00:30] The position is equal.} Bxc6 {[%emt 0:08:30] [#]} 11. Nxc6 $146 {[%emt 0:27:30]} ({Predecessor:} 11. f4 Qc7 12. Rhe1 Rfd8 13. Kb1 a6 14. Qg3 Rac8 15. e5 dxe5 16. fxe5 Nd5 17. Ne4 {0-1 (38) Eynullayev,A (2347)-Sapunov,E (2461) Chess.com INT 2021}) 11... bxc6 {[%emt 0:00:30]} 12. f4 {[%emt 0:10:30]} Qa5 {[%emt 0:20:30]} 13. Rhe1 {[%emt 0:04:30]} (13. f5 $11 {might be stronger.}) 13... h6 $15 {[%emt 0:02:30]} 14. Bh4 {[%emt 0:01:30]} Qh5 {[%emt 0:04:30]} (14... Rfb8 $15) 15. Bg3 {[%emt 0:03:30]} (15. Qg3 $5 {[%cal Re4e5]}) 15... Qa5 {[%emt 0:10:30]} 16. f5 {[%emt 0:03:30]} e5 {[%emt 0:03:30]} 17. Bh4 {[%emt 0:04:30]} (17. Kb1 $11) 17... Rfd8 {[%emt 0:04:30]} (17... Rab8 $1 $15) 18. Qc4 {[%emt 0:11:30]} (18. g4 $11) 18... Rab8 $1 {[%emt 0:04:59] Hoping for ...d5.} 19. Qa4 {[%emt 0:20:42]} Qc5 {[%emt 0:05:32]} ({Black should try} 19... Qb6 $15 20. b3 Qc5 21. Bxf6 Bxf6) 20. a3 $1 $11 {[%emt 0:01:37]} Kf8 {[%emt 0:10:28]} (20... Qb6 $5 {[%cal Rb6b2]} 21. b3 Rd7 $11) 21. Rd3 {[%emt 0:01:43]} Nd7 {[%emt 0:00:56]} 22. Bxe7+ {[%emt 0:00:48]} Kxe7 {[%emt 0:00:01]} 23. Red1 {[%emt 0:01:06]} (23. Nd1 $11) 23... Qb6 $1 $15 {[%emt 0:01:12] [#] ...Nc5 is the strong threat.} 24. b4 {[%emt 0:00:16] Inhibits Nc5.} Nf6 {[%emt 0:00:04]} 25. h3 {[%emt 0:00:34]} a5 {[%emt 0:01:11]} (25... Rbc8 $15) 26. bxa5 $11 {[%emt 0:00:28]} ({Of course not} 26. Qxa5 Qxa5 27. bxa5 Ra8 $17) 26... Qc5 {[%emt 0:00:02]} 27. a6 {[%emt 0:00:27]} (27. Na2 $1 $11 {remains equal.}) 27... Qb6 {[%emt 0:00:54]} 28. g4 {[%emt 0:00:44]} Ra8 $1 {[%emt 0:00:21][%cal Bb8a8,Ba8a6,Ba6b6][%mdl 32]} 29. Qb4 {[%emt 0:00:16]} Rxa6 {[%emt 0:00:40]} 30. Qxb6 {[%emt 0:00:42]} Rxb6 {[%emt 0:00:01]} 31. Re1 {[%emt 0:00:30]} Nd7 {[%emt 0:00:52]} 32. Kd2 {[%emt 0:00:30]} Nc5 {[%emt 0:00:04]} 33. Rg3 {[%emt 0:00:03]} f6 {[%emt 0:00:45]} 34. h4 {[%emt 0:00:17]} d5 {[%emt 0:00:17]} 35. exd5 {[%emt 0:00:08]} (35. g5 $17) 35... cxd5 $19 {[%emt 0:00:04][%cal Bc6d5,Bd5d4][%mdl 32]} 36. g5 {[%emt 0:00:20]} hxg5 {[%emt 0:00:01]} 37. hxg5 {[%emt 0:00:05]} d4 {[%emt 0:00:01]} 38. Na2 {[%emt 0:00:55]} e4 {[%emt 0:01:17]} 39. Nb4 {[%emt 0:00:04] [#]} ({White should play} 39. gxf6+ gxf6 40. Rg7+ Kd6 41. Nb4) 39... Kd6 $1 {[%emt 0:00:51] Weighted Error Value: White=0.20 (precise) /Black=0.18 (very precise)} 0-1

[Event "Marmaris Icmeler-IM May 2022"]
[Site "Icmeler"]
[Date "2022.05.09"]
[Round "9.4"]
[White "Kilic, Eray"]
[Black "Darban, Morteza"]
[Result "1-0"]
[ECO "B11"]
[WhiteElo "2192"]
[BlackElo "2279"]
[Annotator "TA"]
[PlyCount "81"]
[EventDate "2022.05.05"]
[EventType "schev"]
[EventCountry "TUR"]
[SourceTitle "playchess.com"]
[Source "ChessBase"]
[SourceQuality "1"]
[TimeControl "5400+30"]

{[%evp 11,81,-10,0,-19,-10,-31,-16,-104,-106,-112,-84,-117,-118,-139,-77,-168,-166,-199,-200,-272,-267,-341,-276,-320,-268,-286,-232,-229,-227,-234,-230,-235,-224,-291,-302,-301,-306,-300,-186,-176,-169,-229,-213,-220,-177,-236,-242,-338,-331,-331,-324,-324,-322,-402,-255,-252,-241,-218,0,0,0,0,0,-82,247,166,1738,813,813,813,29993,29994]} 1. e4 {[%emt 0:01:00]} c6 {[%emt 0:02:00]} 2. Nc3 {[%emt 0:00:00]} d5 {[%emt 0:00:00]} 3. Nf3 {[%emt 0:00:00]} Bg4 {[%emt 0:00:00]} 4. h3 {[%emt 0:00:00]} Bxf3 {[%emt 0:00:30]} 5. Qxf3 {[%emt 0:00:00]} Nf6 {[%emt 0:02:30]} 6. e5 {[%emt 0:01:30]} Nfd7 $1 {[%emt 0:00:30]} 7. d4 {[%emt 0:02:30] B11: Caro-Kann: Two Knights Variation.} e6 {[%emt 0:00:30]} 8. Qg3 {[%emt 0:00:30]} Qb6 {[%emt 0:01:30]} 9. Bd3 {[%emt 0:01:30]} (9. f4 $11) 9... Qxd4 $17 {[%emt 0:00:30]} 10. O-O {[%emt 0:00:00] [#]} h5 $146 {[%emt 0:07:30][%cal Bh7h5,Bh5h4][%mdl 32]} (10... Nxe5 $2 11. Be3 Qb4 12. Qxe5 $18) ({Predecessor:} 10... Qxe5 11. Bf4 Qd4 12. Ne2 Qc5 13. b4 Qe7 14. Nd4 Qxb4 15. Nf5 Na6 16. Rab1 Qa5 17. Rxb7 exf5 {½-½ (35) Christensen,J-Schmidt,K (2235) Aarhus 1984}) 11. Re1 {[%emt 0:09:00]} h4 {[%emt 0:02:30]} 12. Qg5 {[%emt 0:01:30] [#]} Na6 {[%emt 0:13:30]} ({Resist} 12... Bc5 13. Be3 Qxe5 14. Qxe5 Nxe5 15. Bxc5 $18) (12... g6 $142 $1 13. Qf4 Qxf4 14. Bxf4 Bg7) 13. Be3 {[%emt 0:06:30]} (13. a3 $17) 13... Qxe5 $19 {[%emt 0:01:30]} 14. Qg4 {[%emt 0:00:30]} Qh5 {[%emt 0:02:30]} ({Weaker is} 14... Bd6 15. f4 Qf6 16. Bxa6 bxa6 17. Rad1) 15. Qd4 {[%emt 0:08:30]} Nb4 {[%emt 0:05:30]} 16. Bf4 {[%emt 0:10:30]} Nxd3 {[%emt 0:03:30]} 17. cxd3 {[%emt 0:00:30]} Qf5 {[%emt 0:04:30]} 18. Ne2 {[%emt 0:16:30]} Qf6 {[%emt 0:06:30]} ({Not} 18... e5 19. Bxe5 O-O-O 20. Bh2 $17) 19. Qa4 {[%emt 0:01:30]} Be7 {[%emt 0:03:30]} 20. d4 {[%emt 0:00:30]} O-O {[%emt 0:00:30]} 21. Qb3 {[%emt 0:00:30]} b5 {[%emt 0:07:30][%cal Bb7b5,Bb5b4][%mdl 32]} 22. a4 {[%emt 0:00:00]} b4 {[%emt 0:02:30]} 23. a5 {[%emt 0:02:00]} c5 {[%emt 0:09:30]} 24. Qa4 {[%emt 0:05:30]} cxd4 {[%emt 0:04:13]} 25. Qxd7 {[%emt 0:00:30]} d3 $1 {[%emt 0:00:01][%csl LRb2,LRe2][%mdl 64] Discovered Attack} 26. Bc7 {[%emt 0:00:00]} (26. Nc1 {keeps fighting.} Qxf4 27. Qxe7) 26... dxe2 {[%emt 0:01:03]} 27. Rxe2 {[%emt 0:00:00]} Bc5 {[%emt 0:00:40][%cal Be7c5,Bc5d4,Bd4b2,Bb2c3][%mdl 32]} 28. Rc1 {[%emt 0:01:30]} (28. Qb5 $142 Be7 29. Qb7) 28... Bd4 {[%emt 0:03:58]} 29. Rc6 {[%emt 0:02:30]} Bxb2 {[%emt 0:03:16]} 30. Bd6 {[%emt 0:00:30]} Rfd8 {[%emt 0:05:35]} 31. Qb7 {[%emt 0:00:30]} Bc3 {[%emt 0:00:56]} 32. Be7 {[%emt 0:11:48] [#]} Qf4 {[%emt 0:02:25]} 33. Bxd8 {[%emt 0:01:48]} Rxd8 {[%emt 0:00:02]} 34. Re3 {[%emt 0:02:26]} Qb8 {[%emt 0:01:21]} ({Black should try} 34... Rf8 $19 {And now ...d4 would win.} 35. Qc7 Qd4 36. Rexc3 bxc3 37. Rxc3 Qd1+ 38. Kh2 Qe1) 35. a6 $1 $11 {[%emt 0:00:57]} Rf8 {[%emt 0:04:55] Threatens to win with ...Qf4.} 36. Rc7 {[%emt 0:00:30][%cal Oc7f7] Rxf7! is the strong threat.} Qe8 {[%emt 0:00:31]} 37. Qxa7 {[%emt 0:02:25]} (37. Rf3 $11) 37... d4 $2 {[%emt 0:00:01][%mdl 8192] This costs Black the game.} (37... Qa4 $17 {stays on course. Strongly threatening ...Qa1+.} 38. Kh2 Qa1 39. Rexc3 bxc3) 38. Rf3 {[%emt 0:00:24]} e5 $2 {[%emt 0:00:58] [#]} (38... d3) 39. Rfxf7 $3 {[%emt 0:00:33][%mdl 512]} Rxf7 {[%emt 0:00:27]} 40. Rxf7 {[%emt 0:00:07]} Kh8 {[%emt 0:00:36]} 41. Rxg7 {[%emt 0:00:02] Weighted Error Value: White=0.35/Black=0.61} 1-0